fUST/lending_fUST_20250814
["ID","MTS","AMOUNT","RATE_DAILY","PERIOD"]
[379064360,1755112249711,-789.95,0.00019452,2]
[379064361,1755112249722,-497.82,0.00019452,2]
[379064362,1755112249732,-460.0,0.00019452,2]
[379064363,1755112249742,-460.0,0.00019452,2]
[379064364,1755112249752,-466.60621173,0.00019452,2]
[379064365,1755112249763,-460.0,0.00019452,2]
[379064366,1755112249774,-1349.1,0.00019452,2]
[379064367,1755112249785,-1531.04,0.00019452,2]
[379064368,1755112249794,-567.76,0.00019452,2]
[379064369,1755112249803,-735.44,0.00019452,2]
[379064370,1755112249812,-460.0,0.00019452,2]
[379064371,1755112249822,-460.0,0.00019452,2]
[379064372,1755112249831,-3916.89,0.00019452,2]
[379064373,1755112249840,-1231.08,0.00019452,2]
[379064374,1755112249849,-460.0,0.00019452,2]
[379064375,1755112249859,-548.85,0.00019452,2]
[379064376,1755112249868,-460.0,0.00019452,2]
[379064377,1755112249877,-1697.1,0.00019452,2]
[379064378,1755112249887,-460.0,0.00019452,2]
[379064379,1755112249896,-1802.44,0.00019452,2]
[379064380,1755112249905,-460.0,0.00019452,2]
[379064381,1755112249914,-461.12350806,0.00019452,2]
[379064382,1755112249923,-460.0,0.00019452,2]
[379064383,1755112249932,-460.0,0.00019452,2]
[379064384,1755112249942,-460.0,0.00019452,2]
[379064385,1755112249952,-460.0,0.00019452,2]
[379064386,1755112249961,-460.0,0.00019452,2]
[379064387,1755112249970,-460.0,0.00019452,2]
[379064388,1755112249979,-460.0,0.00019452,2]
[379064389,1755112249989,-460.0,0.00019452,2]
[379064390,1755112249998,-1682.02,0.00019452,2]
[379064391,1755112250007,-460.0,0.00019452,2]
[379064392,1755112250017,-481.81,0.00019452,2]
[379064393,1755112250028,-884.28,0.00019452,2]
[379064394,1755112250037,-657.94,0.00019452,2]
[379064395,1755112250047,-1047.96,0.00019452,2]
[379064396,1755112250056,-460.0,0.00019452,2]
[379064397,1755112250065,-460.0,0.00019452,2]
[379064398,1755112250075,-460.0,0.00019452,2]
[379064399,1755112250084,-3634.62,0.00019452,2]
[379064400,1755112250093,-460.0,0.00019452,2]
[379064401,1755112250102,-742.09,0.00019452,2]
[379064402,1755112250111,-460.0,0.00019452,2]
[379064403,1755112250125,-460.0,0.00019452,2]
[379064404,1755112250135,-460.0,0.00019452,2]
[379064405,1755112250144,-4089.87,0.00019452,2]
[379064406,1755112250155,-460.0,0.00019452,2]
[379064407,1755112250164,-460.0,0.00019452,2]
[379064408,1755112250174,-460.0,0.00019452,2]
[379064409,1755112250184,-1288.21,0.00019452,2]
[379064410,1755112250193,-1866.55,0.00019452,2]
[379064411,1755112250203,-10018.09,0.00019452,2]
[379064412,1755112250213,-460.0,0.00019452,2]
[379064413,1755112250223,-460.0,0.00019452,2]
[379064414,1755112250233,-2903.86,0.00019452,2]
[379064415,1755112250243,-460.0,0.00019452,2]
[379064416,1755112250253,-6478.5,0.00019452,2]
[379064417,1755112250264,-460.0,0.00019452,2]
[379064418,1755112250273,-460.0,0.00019452,2]
[379064419,1755112250283,-1654.8,0.00019452,2]
[379064420,1755112250292,-460.0,0.00019452,2]
[379064421,1755112250302,-460.0,0.00019452,2]
[379064422,1755112250312,-460.0,0.00019452,2]
[379064423,1755112250323,-460.0,0.00019452,2]
[379064424,1755112250334,-2178.28,0.00019452,2]
[379064425,1755112250343,-819.15,0.00019452,2]
[379064426,1755112250353,-460.0,0.00019452,2]
[379064427,1755112250362,-460.0,0.00019452,2]
[379064428,1755112250371,-461.84,0.00019452,2]
[379064429,1755112250381,-830.77,0.00019452,2]
[379064430,1755112250390,-753.81,0.00019452,2]
[379064431,1755112250399,-460.0,0.00019452,2]
[379064432,1755112250410,-753.21,0.00019452,2]
[379064433,1755112250419,-460.0,0.00019452,2]
[379064434,1755112250429,-460.0,0.00019452,2]
[379064435,1755112250438,-2647.34,0.00019452,2]
[379064436,1755112250448,-460.0,0.00019452,2]
[379064437,1755112250457,-460.0,0.00019452,2]
[379064438,1755112250468,-460.0,0.00019452,2]
[379064439,1755112250477,-460.0,0.00019452,2]
[379064440,1755112250487,-460.0,0.00019452,2]
[379064441,1755112250497,-591.61287305,0.00019452,2]
[379064442,1755112250506,-1294.39,0.00019452,2]
[379064443,1755112250516,-460.0,0.00019452,2]
[379064444,1755112250525,-366.98673198,0.00019452,2]
[379064445,1755112250535,-460.0,0.00019452,2]
[379064446,1755112250544,-1840.17,0.00019452,2]
[379064447,1755112250554,-460.0,0.00019452,2]
[379064448,1755112250563,-1029.95,0.00019452,2]
[379064449,1755112250574,-460.0,0.00019452,2]
[379064450,1755112250583,-460.0,0.00019452,2]
[379064451,1755112250592,-715.95,0.00019452,2]
[379064452,1755112250602,-460.0,0.00019452,2]
[379064453,1755112250612,-460.0,0.00019452,2]
[379064454,1755112250621,-460.0,0.00019452,2]
[379064455,1755112250631,-463.21519099,0.00019452,2]
[379064456,1755112250640,-626.76,0.00019452,2]
[379064457,1755112250649,-460.0,0.00019452,2]
[379064458,1755112250659,-460.0,0.00019452,2]
[379064459,1755112250668,-1174.73,0.00019452,2]
[379064460,1755112250677,-460.0,0.00019452,2]
[379064461,1755112250687,-460.0,0.00019452,2]
[379064462,1755112250696,-507.11,0.00019452,2]
[379064463,1755112250706,-460.0,0.00019452,2]
[379064464,1755112250715,-1646.74,0.00019452,2]
[379064465,1755112250724,-460.0,0.00019452,2]
[379064466,1755112250733,-460.0,0.00019452,2]
[379064467,1755112250742,-460.0,0.00019452,2]
[379064468,1755112250751,-460.0,0.00019452,2]
[379064469,1755112250760,-460.0,0.00019452,2]
[379064470,1755112250770,-573.62,0.00019452,2]
[379064471,1755112250779,-1879.55,0.00019452,2]
[379064472,1755112250788,-460.0,0.00019452,2]
[379064473,1755112250801,-1632.25,0.00019452,2]
[379064474,1755112250810,-460.0,0.00019452,2]
[379064475,1755112250820,-460.0,0.00019452,2]
[379064476,1755112250830,-795.75,0.00019452,2]
[379064477,1755112250839,-460.0,0.00019452,2]
[379064478,1755112250848,-460.0,0.00019452,2]
[379064479,1755112250857,-326.91305723,0.00019452,2]
[379064480,1755112250866,-460.0,0.00019452,2]
[379064481,1755112250876,-3889.15,0.00019452,2]
[379064482,1755112250886,-460.0,0.00019452,2]
[379064483,1755112250895,-460.0,0.00019452,2]
[379064484,1755112250904,-259.23,0.00019452,2]
[379064485,1755112250914,-460.0,0.00019452,2]
[379064486,1755112250922,-1027.75,0.00019452,2]
[379064487,1755112250931,-460.0,0.00019452,2]
[379064488,1755112250941,-460.0,0.00019452,2]
[379064489,1755112250950,-460.0,0.00019452,2]
[379064490,1755112250959,-460.0,0.00019452,2]
[379064491,1755112250968,-2425.48,0.00019452,2]
[379064492,1755112250977,-1935.24,0.00019452,2]
[379064493,1755112250986,-460.0,0.00019452,2]
[379064494,1755112250995,-460.0,0.00019452,2]
[379064495,1755112251005,-1325.06,0.00019452,2]
[379064496,1755112251014,-460.0,0.00019452,2]
[379064497,1755112251023,-460.0,0.00019452,2]
[379064498,1755112251032,-654.19,0.00019452,2]
[379064499,1755112251041,-460.0,0.00019452,2]
[379064500,1755112251050,-460.0,0.00019452,2]
[379064501,1755112251061,-460.0,0.00019452,2]
[379064502,1755112251071,-460.0,0.00019452,2]
[379064503,1755112251079,-460.0,0.00019452,2]
[379064504,1755112251089,-460.0,0.00019452,2]
[379064505,1755112251098,-1902.87,0.00019452,2]
[379064506,1755112251110,-460.0,0.00019452,2]
[379064507,1755112251123,-460.0,0.00019452,2]
[379064508,1755112251135,-460.0,0.00019452,2]
[379064509,1755112251147,-176.78007701,0.00019452,2]
[379064510,1755112251159,-460.0,0.00019452,2]
[379064511,1755112251171,-460.0,0.00019452,2]
[379064512,1755112251182,-460.0,0.00019452,2]
[379064513,1755112251192,-460.0,0.00019452,2]
[379064514,1755112251204,-601.85,0.00019452,2]
[379064515,1755112251215,-1058.53,0.00019452,2]
[379064516,1755112251227,-460.0,0.00019452,2]
[379064517,1755112251239,-460.0,0.00019452,2]
[379064518,1755112251250,-460.0,0.00019452,2]
[379064519,1755112251261,-498.54,0.00019452,2]
[379064520,1755112251272,-460.0,0.00019452,2]
[379064521,1755112251283,-460.0,0.00019452,2]
[379064522,1755112251295,-1749.22,0.00019452,2]
[379064523,1755112251307,-975.8,0.00019452,2]
[379064524,1755112251318,-460.0,0.00019452,2]
[379064525,1755112251330,-460.0,0.00019452,2]
[379064526,1755112251341,-460.0,0.00019452,2]
[379064527,1755112251354,-1789.12,0.00019452,2]
[379064528,1755112251367,-601.68,0.00019452,2]
[379064529,1755112251378,-1663.02,0.00019452,2]
[379064530,1755112251391,-460.0,0.00019452,2]
[379064531,1755112251402,-721.24,0.00019452,2]
[379064532,1755112251413,-460.0,0.00019452,2]
[379064533,1755112251425,-500.0,0.00019473,2]
[379064534,1755112251437,-500.0,0.00019473,2]
[379064535,1755112251448,-500.0,0.00019473,2]
[379064536,1755112251459,-500.0,0.00019473,2]
[379064537,1755112251470,-500.0,0.00019473,2]
[379064538,1755112251482,-343.05552741,0.00019473,2]
[379064539,1755112251494,-500.0,0.00019473,2]
[379064540,1755112251506,-211.54271977,0.00019473,2]
[379064541,1755112251516,-160.10329636,0.00019473,2]
[379064542,1755112251528,-204.08884053,0.00019473,2]
[379064543,1755112251538,-500.47771889,0.00019473,2]
[379064544,1755112251549,-500.0,0.00019473,2]
[379064545,1755112251559,-206.41950611,0.00019473,2]
[379064546,1755112251569,-500.0,0.00019473,2]
[379064547,1755112251580,-229.09553761,0.00019473,2]
[379064548,1755112251591,-500.0,0.00019473,2]
[379064549,1755112251601,-500.0,0.00019473,2]
[379064550,1755112251613,-500.0,0.00019473,2]
[379064551,1755112251624,-500.0,0.00019473,2]
[379064552,1755112251635,-500.0,0.00019473,2]
[379064553,1755112251647,-500.0,0.00019473,2]
[379064554,1755112251658,-500.0,0.00019473,2]
[379064555,1755112251669,-500.0,0.00019473,2]
[379064556,1755112251680,-500.0,0.00019473,2]
[379064557,1755112251692,-500.0,0.00019473,2]
[379064558,1755112251704,-500.0,0.00019473,2]
[379064559,1755112251716,-527.21987718,0.00019473,2]
[379064560,1755112251727,-500.0,0.00019473,2]
[379064561,1755112251739,-500.0,0.00019473,2]
[379064562,1755112251751,-500.0,0.00019473,2]
[379064563,1755112251760,-500.0,0.00019473,2]
[379064564,1755112251770,-500.0,0.00019473,2]
[379064565,1755112251780,-500.0,0.00019473,2]
[379064566,1755112251790,-500.0,0.00019473,2]
[379064567,1755112251800,-500.0,0.00019473,2]
[379064568,1755112251811,-500.0,0.00019473,2]
[379064569,1755112251822,-500.0,0.00019473,2]
[379064570,1755112251834,-500.0,0.00019473,2]
[379064571,1755112251847,-500.0,0.00019473,2]
[379064572,1755112251859,-500.0,0.00019473,2]
[379064573,1755112251870,-500.0,0.00019473,2]
[379064574,1755112251881,-500.0,0.00019473,2]
[379064575,1755112251891,-500.0,0.00019473,2]
[379064576,1755112251901,-500.0,0.00019473,2]
[379064577,1755112251912,-525.32275977,0.00019473,2]
[379064578,1755112251922,-500.0,0.00019473,2]
[379064579,1755112251933,-500.0,0.00019473,2]
[379064580,1755112251944,-500.0,0.0001954,2]
[379064581,1755112251955,-240.894,0.0001958,2]
[379064582,1755112251966,-500.0,0.0001962,2]
[379064583,1755112251976,-198.0,0.0001962,2]
[379064584,1755112251986,-185.58838751,0.0001962,2]
[379064585,1755112251996,-151.0,0.0001962,2]
[379064586,1755112252006,-208.18217949,0.0001962,2]
[379064587,1755112252016,-972.0,0.00019647,2]
[379064588,1755112252027,-636.0,0.00019647,2]
[379064589,1755112252038,-2151.0,0.00019647,2]
[379064590,1755112252048,-408.0,0.00019647,2]
[379064591,1755112252059,-319.10332167,0.00019721,2]
[379064592,1755112252069,-1000.0,0.00019721,2]
[379064593,1755112252080,-1000.0,0.00019721,2]
[379064594,1755112252091,-460.0,0.00019726,2]
[379064595,1755112252101,-460.0,0.00019726,2]
[379064596,1755112252111,-460.0,0.00019726,2]
[379064597,1755112252125,-460.0,0.00019726,2]
[379064598,1755112252135,-460.0,0.00019726,2]
[379064599,1755112252146,-460.0,0.00019726,2]
[379064600,1755112252156,-460.0,0.00019726,2]
[379064601,1755112252169,-460.0,0.00019726,2]
[379064602,1755112252182,-460.0,0.00019726,2]
[379064603,1755112252193,-460.0,0.00019726,2]
[379064604,1755112252205,-460.0,0.00019726,2]
[379064605,1755112252217,-460.0,0.00019726,2]
[379064606,1755112252228,-460.0,0.00019726,2]
[379064607,1755112252238,-556.82947604,0.00019726,2]
[379064608,1755112252249,-538.9657213,0.00019726,2]
[379064609,1755112252260,-460.0,0.00019726,2]
[379064610,1755112252270,-460.0,0.00019726,2]
[379064611,1755112252281,-460.0,0.00019726,2]
[379064612,1755112252292,-460.0,0.00019726,2]
[379064613,1755112252302,-460.0,0.00019726,2]
[379064614,1755112252312,-491.15,0.00019726,2]
[379064615,1755112252323,-460.0,0.00019726,2]
[379064616,1755112252333,-577.42,0.00019726,2]
[379064617,1755112252343,-460.0,0.00019726,2]
[379064618,1755112252354,-460.0,0.00019726,2]
[379064619,1755112252365,-630.9,0.00019726,2]
[379064620,1755112252376,-460.0,0.00019726,2]
[379064621,1755112252387,-460.0,0.00019726,2]
[379064622,1755112252397,-460.0,0.00019726,2]
[379064623,1755112252407,-460.0,0.00019726,2]
[379064624,1755112252418,-460.0,0.00019726,2]
[379064625,1755112252428,-460.0,0.00019726,2]
[379064626,1755112252439,-554.1256784,0.00019726,2]
[379064627,1755112252451,-460.0,0.00019726,2]
[379064628,1755112252461,-460.0,0.00019726,2]
[379064629,1755112252471,-460.0,0.00019726,2]
[379064630,1755112252481,-460.0,0.00019726,2]
[379064631,1755112252491,-460.0,0.00019726,2]
[379064632,1755112252502,-460.0,0.00019726,2]
[379064633,1755112252512,-460.0,0.00019726,2]
[379064634,1755112252523,-460.0,0.00019726,2]
[379064635,1755112252533,-527.64511404,0.00019726,2]
[379064636,1755112252544,-460.0,0.00019726,2]
[379064637,1755112252554,-460.0,0.00019726,2]
[379064638,1755112252565,-460.0,0.00019726,2]
[379064639,1755112252575,-460.0,0.00019726,2]
[379064640,1755112252586,-460.0,0.00019726,2]
[379064641,1755112252596,-460.0,0.00019726,2]
[379064642,1755112252606,-460.0,0.00019726,2]
[379064643,1755112252617,-460.0,0.00019726,2]
[379064644,1755112252627,-460.0,0.00019726,2]
[379064645,1755112252638,-460.0,0.00019726,2]
[379064646,1755112252648,-460.0,0.00019726,2]
[379064647,1755112252659,-460.0,0.00019726,2]
[379064648,1755112252669,-595.56,0.00019726,2]
[379064649,1755112252681,-1192.07,0.00019726,2]
[379064650,1755112252691,-460.0,0.00019726,2]
[379064651,1755112252702,-460.0,0.00019726,2]
[379064652,1755112252712,-460.0,0.00019726,2]
[379064653,1755112252722,-460.0,0.00019726,2]
[379064654,1755112252732,-460.0,0.00019726,2]
[379064655,1755112252743,-460.0,0.00019726,2]
[379064656,1755112252753,-460.0,0.00019726,2]
[379064657,1755112252763,-508.41,0.00019726,2]
[379064658,1755112252774,-460.0,0.00019726,2]
[379064659,1755112252784,-460.0,0.00019726,2]
[379064660,1755112252795,-460.0,0.00019726,2]
[379064661,1755112252805,-1521.53,0.00019726,2]
[379064662,1755112252816,-877.83,0.00019726,2]
[379064663,1755112252826,-460.0,0.00019726,2]
[379064664,1755112252837,-499.59,0.00019726,2]
[379064665,1755112252847,-814.41,0.00019726,2]
[379064666,1755112252858,-460.0,0.00019726,2]
[379064667,1755112252868,-460.0,0.00019726,2]
[379064668,1755112252879,-460.0,0.00019726,2]
[379064669,1755112252890,-460.0,0.00019726,2]
[379064670,1755112252901,-500.0,0.00019726,2]
[379064671,1755112252911,-486.55905038,0.00019726,2]
[379064672,1755112252922,-984.07,0.00019726,2]
[379064673,1755112252932,-460.0,0.00019726,2]
[379064674,1755112252946,-460.0,0.00019726,2]
[379064675,1755112252956,-460.0,0.00019726,2]
[379064676,1755112252966,-460.0,0.00019726,2]
[379064677,1755112252977,-460.0,0.00019726,2]
[379064678,1755112252987,-984.43,0.00019726,2]
[379064679,1755112252997,-1471.49,0.00019726,2]
[379064680,1755112253008,-460.0,0.00019726,2]
[379064681,1755112253018,-460.0,0.00019726,2]
[379064682,1755112253028,-460.0,0.00019726,2]
[379064683,1755112253039,-1239.32,0.00019726,2]
[379064684,1755112253050,-460.0,0.00019726,2]
[379064685,1755112253062,-460.0,0.00019726,2]
[379064686,1755112253072,-460.0,0.00019726,2]
[379064687,1755112253081,-1419.18,0.00019726,2]
[379064688,1755112253091,-705.7,0.00019726,2]
[379064689,1755112253102,-460.0,0.00019726,2]
[379064690,1755112253112,-460.0,0.00019726,2]
[379064691,1755112253123,-1289.48,0.00019726,2]
[379064692,1755112253135,-460.0,0.00019726,2]
[379064693,1755112253156,-460.0,0.00019726,2]
[379064694,1755112253173,-460.0,0.00019726,2]
[379064695,1755112253186,-588.47,0.00019726,2]
[379064696,1755112253197,-977.14,0.00019726,2]
[379064697,1755112253209,-460.0,0.00019726,2]
[379064698,1755112253221,-460.0,0.00019726,2]
[379064699,1755112253233,-460.0,0.00019726,2]
[379064700,1755112253243,-460.0,0.00019726,2]
[379064701,1755112253253,-649.5,0.00019726,2]
[379064702,1755112253263,-549.68,0.00019726,2]
[379064703,1755112253273,-732.27,0.00019726,2]
[379064704,1755112253284,-460.0,0.00019726,2]
[379064705,1755112253295,-460.0,0.00019726,2]
[379064706,1755112253306,-460.0,0.00019726,2]
[379064707,1755112253316,-548.95,0.00019726,2]
[379064708,1755112253327,-460.0,0.00019726,2]
[379064709,1755112253339,-460.0,0.00019726,2]
[379064710,1755112253350,-460.0,0.00019726,2]
[379064711,1755112253361,-370.09,0.00019726,2]
[379064712,1755112253372,-1737.8,0.00019726,2]
[379064713,1755112253383,-530.68131931,0.00019726,2]
[379064714,1755112253393,-460.0,0.00019726,2]
[379064715,1755112253404,-460.0,0.00019726,2]
[379064716,1755112253414,-460.0,0.00019726,2]
[379064717,1755112253424,-460.0,0.00019726,2]
[379064718,1755112253434,-954.21,0.00019726,2]
[379064719,1755112253444,-460.0,0.00019726,2]
[379064720,1755112253460,-461.97581785,0.00019726,2]
[379064721,1755112253470,-460.0,0.00019726,2]
[379064722,1755112253480,-661.52,0.00019726,2]
[379064723,1755112253490,-460.0,0.00019726,2]
[379064724,1755112253500,-460.0,0.00019726,2]
[379064725,1755112253510,-460.0,0.00019726,2]
[379064726,1755112253520,-460.0,0.00019726,2]
[379064727,1755112253530,-460.0,0.00019726,2]
[379064728,1755112253540,-460.0,0.00019726,2]
[379064729,1755112253549,-460.0,0.00019726,2]
[379064730,1755112253560,-817.84,0.00019726,2]
[379064731,1755112253572,-460.0,0.00019726,2]
[379064732,1755112253593,-460.0,0.00019726,2]
[379064733,1755112253609,-460.0,0.00019726,2]
[379064734,1755112253619,-460.0,0.00019726,2]
[379064735,1755112253630,-569.08203448,0.00019726,2]
[379064736,1755112253640,-460.0,0.00019726,2]
[379064737,1755112253650,-460.0,0.00019726,2]
[379064738,1755112253660,-539.72,0.00019726,2]
[379064739,1755112253671,-894.44,0.00019726,2]
[379064740,1755112253681,-460.0,0.00019726,2]
[379064741,1755112253691,-460.0,0.00019726,2]
[379064742,1755112253703,-460.0,0.00019726,2]
[379064743,1755112253713,-460.0,0.00019726,2]
[379064744,1755112253723,-460.0,0.00019726,2]
[379064745,1755112253733,-460.0,0.00019726,2]
[379064746,1755112253743,-726.71,0.00019726,2]
[379064747,1755112253752,-460.0,0.00019726,2]
[379064748,1755112253763,-460.0,0.00019726,2]
[379064749,1755112253772,-460.0,0.00019726,2]
[379064750,1755112253783,-460.0,0.00019726,2]
[379064751,1755112253793,-460.0,0.00019726,2]
[379064752,1755112253803,-460.0,0.00019726,2]
[379064753,1755112253813,-460.0,0.00019726,2]
[379064754,1755112253823,-578.78607371,0.00019726,2]
[379064755,1755112253834,-610.59,0.00019726,2]
[379064756,1755112253844,-460.0,0.00019726,2]
[379064757,1755112253854,-560.11,0.00019726,2]
[379064758,1755112253864,-460.0,0.00019726,2]
[379064759,1755112253874,-460.0,0.00019726,2]
[379064760,1755112253884,-464.88,0.00019726,2]
[379064761,1755112253894,-2656.48,0.00019726,2]
[379064762,1755112253904,-460.0,0.00019726,2]
[379064763,1755112253914,-358.73,0.00019726,2]
[379064764,1755112253924,-460.0,0.00019726,2]
[379064765,1755112253934,-460.0,0.00019726,2]
[379064766,1755112253944,-460.0,0.00019726,2]
[379064767,1755112253957,-683.27,0.00019726,2]
[379064768,1755112253967,-797.72,0.00019726,2]
[379064769,1755112253977,-460.0,0.00019726,2]
[379064770,1755112253987,-460.0,0.00019726,2]
[379064771,1755112253997,-460.0,0.00019726,2]
[379064772,1755112254011,-460.0,0.00019726,2]
[379064773,1755112254022,-460.0,0.00019726,2]
[379064774,1755112254031,-604.18,0.00019726,2]
[379064775,1755112254042,-460.0,0.00019726,2]
[379064776,1755112254052,-475.94,0.00019726,2]
[379064777,1755112254062,-460.0,0.00019726,2]
[379064778,1755112254371,-460.0,0.00019726,2]
[379064779,1755112254398,-460.0,0.00019726,2]
[379064780,1755112254409,-839.34,0.00019726,2]
[379064781,1755112254419,-460.0,0.00019726,2]
[379064782,1755112254429,-460.0,0.00019726,2]
[379064783,1755112254439,-460.0,0.00019726,2]
[379064784,1755112254450,-731.73,0.00019726,2]
[379064785,1755112254459,-460.0,0.00019726,2]
[379064786,1755112254469,-460.0,0.00019726,2]
[379064787,1755112254478,-460.0,0.00019726,2]
[379064788,1755112254487,-460.0,0.00019726,2]
[379064789,1755112254497,-468.32217539,0.00019726,2]
[379064790,1755112254507,-460.0,0.00019726,2]
[379064791,1755112254517,-460.0,0.00019726,2]
[379064792,1755112254527,-460.0,0.00019726,2]
[379064793,1755112254540,-1296.92,0.00019726,2]
[379064794,1755112254560,-460.0,0.00019726,2]
[379064795,1755112254570,-460.0,0.00019726,2]
[379064796,1755112254580,-460.0,0.00019726,2]
[379064797,1755112254589,-525.91,0.00019726,2]
[379064798,1755112254598,-460.0,0.00019726,2]
[379064799,1755112254607,-2321.42,0.00019726,2]
[379064800,1755112254616,-1019.53,0.00019726,2]
[379064801,1755112254626,-460.0,0.00019726,2]
[379064802,1755112254635,-460.0,0.00019726,2]
[379064803,1755112254644,-460.0,0.00019726,2]
[379064804,1755112254653,-586.33015003,0.00019726,2]
[379064805,1755112254662,-839.99,0.00019726,2]
[379064806,1755112254671,-516.19,0.00019726,2]
[379064807,1755112254681,-751.64,0.00019726,2]
[379064808,1755112254690,-6346.14,0.00019726,2]
[379064809,1755112254699,-460.0,0.00019726,2]
[379064810,1755112254708,-1948.58,0.00019726,2]
[379064811,1755112254718,-1204.3,0.00019726,2]
[379064812,1755112254728,-460.0,0.00019726,2]
[379064813,1755112254737,-2168.24,0.00019726,2]
[379064814,1755112254746,-460.0,0.00019726,2]
[379064815,1755112254755,-460.0,0.00019726,2]
[379064816,1755112254764,-460.0,0.00019726,2]
[379064817,1755112254773,-460.0,0.00019726,2]
[379064818,1755112254782,-460.0,0.00019726,2]
[379064819,1755112254791,-460.0,0.00019726,2]
[379064820,1755112254800,-460.0,0.00019726,2]
[379064821,1755112254810,-460.0,0.00019726,2]
[379064822,1755112254819,-1245.83,0.00019726,2]
[379064823,1755112254828,-460.0,0.00019726,2]
[379064824,1755112254838,-651.64,0.00019726,2]
[379064825,1755112254847,-840.79,0.00019726,2]
[379064826,1755112254856,-460.0,0.00019726,2]
[379064827,1755112254866,-460.0,0.00019726,2]
[379064828,1755112254875,-791.23,0.00019726,2]
[379064829,1755112254884,-460.0,0.00019726,2]
[379064830,1755112254894,-460.0,0.00019726,2]
[379064831,1755112254904,-460.0,0.00019726,2]
[379064832,1755112254913,-460.0,0.00019726,2]
[379064833,1755112254923,-699.69,0.00019726,2]
[379064834,1755112254932,-460.0,0.00019726,2]
[379064835,1755112254942,-460.0,0.00019726,2]
[379064836,1755112254953,-460.0,0.00019726,2]
[379064837,1755112254963,-1808.41,0.00019726,2]
[379064838,1755112254972,-562.26,0.00019726,2]
[379064839,1755112254981,-460.0,0.00019726,2]
[379064840,1755112254991,-3777.68,0.00019726,2]
[379064841,1755112255001,-460.0,0.00019726,2]
[379064842,1755112255010,-460.0,0.00019726,2]
[379064843,1755112255019,-460.0,0.00019726,2]
[379064844,1755112255029,-460.0,0.00019726,2]
[379064845,1755112255039,-668.7,0.00019726,2]
[379064846,1755112255049,-908.74,0.00019726,2]
[379064847,1755112255058,-460.0,0.00019726,2]
[379064848,1755112255068,-501.83819179,0.00019726,2]
[379064849,1755112255078,-460.0,0.00019726,2]
[379064850,1755112255088,-460.0,0.00019726,2]
[379064851,1755112255097,-460.0,0.00019726,2]
[379064852,1755112255107,-460.0,0.00019726,2]
[379064853,1755112255120,-460.0,0.00019726,2]
[379064854,1755112255134,-460.0,0.00019726,2]
[379064855,1755112255143,-537.7,0.00019726,2]
[379064856,1755112255153,-229.50989978,0.00019726,2]
[379064857,1755112255163,-460.0,0.00019726,2]
[379064858,1755112255173,-459.37666684,0.00019726,2]
[379064859,1755112255183,-477.02400461,0.00019726,2]